{"text_format":"3","workbook":"xlsx","n_sheets":1,"sheets":["附件1"],"not_rendered":{"defined_names":2},"read":"whole","date_system":"1900"}

{"sheet":"附件1","index":0,"n_rows":516,"n_cols":25,"rows_kept":516,"merged":[[0,0,0,1],[1,0,1,24],[3,22,26,22],[3,23,5,23],[6,23,26,23],[27,22,30,22],[27,23,30,23],[31,22,72,22],[31,23,72,23],[73,22,85,22],[73,23,85,23],[86,22,193,22],[86,23,193,23],[194,22,200,22],[194,23,200,23],[201,22,306,22],[201,23,306,23],[307,22,312,22],[307,23,312,23],[313,22,395,22],[313,23,395,23],[396,22,401,22],[396,23,401,23],[402,22,439,22],[402,23,439,23],[440,22,448,22],[440,23,448,23],[449,22,515,22],[449,23,515,23]]}
["附件1"]
["临夏州2024年“特岗计划”招聘岗位计划表"]
["设岗县市","设岗学校","学校类型","合计","语文","数学","英语","物理","化学","历史","地理","生物","政治","音乐","美术","体育","信息技术","心理辅导","科学","小学全科","小学科学","劳动教育","学历要求","专业要求","备注"]
["临夏市","临夏市第三中学","初级中学",{"$f":"SUM(E4:V4)","v":9},2,1,2,2,{"$nulls":7},2,{"$nulls":6},"本科及以上学历，须取得相应学位","1.研究生学历：\n语文岗位:中国语言文学（0501）、学科教学（语文）（045103）\n数学岗位:数学（0701）、学科教学（数学）（045104）    \n英语岗位:外国语言文学（0502）、学科教学（英语）（045108）\n历史岗位:中国史（0602）、世界史（0603）、 学科教学（历史）（045109）\n物理岗位;物理学（0702）、学科教学（物理）（045105）    \n化学岗位:化学（0703）、学科教学（化学）（045106）\n生物岗位:生物学(0710)、学科教学（生物）（045107)\n美术岗位:艺术学（1301）、学科教学(美术)（045113）\n体育岗位：体育学（0403）、学科教学（体育）（045112）\n    \n2.本科学历：\n语文岗位:汉语言文学（050101）、汉语言（050102）、汉语国际教育（050103）  \n数学岗位:数学与应用数学（070101）、信息与计算科学（070102）、数理基础科学（070103T）\n英语岗位:英语（050201）\n历史岗位:历史学（060101）、世界史（060102） \n物理岗位:物理学（070201）、应用物理学（070202）\n化学岗位:化学（070301）、应用化学（070302）\n生物岗位:生物科学（071001） \n美术岗位:美术学（130401）、绘画（130402）、书法学（130405）、中国画（130406）、美术教育（130413）\n体育岗位:体育教育（040201）、武术与民族传统体育（040204K）","1名语文、1名数学、2名英语为已签约农硕"]
["临夏市","临夏市河州中学附属中学","完全中学（初中部）",{"$f":"SUM(E5:V5)","v":10},null,6,null,null,4]
["临夏市","临夏市枹罕中学","初级中学",9,1,2,1,2,null,1,null,1,null,null,1]
["临夏市","临夏市第三实验小学","乡镇小学",14,4,4,2,{"$nulls":6},1,1,2,{"$nulls":7},"1.研究生学历:不限专业\n\n2.本科学历:\n语文岗位:中国语言文学类（0501）\n数学岗位:数学类（0701）\n英语岗位:英语（050201）、商务英语（050262 ）\n音乐岗位:音乐与舞蹈学类（1302）\n美术岗位:美术学类（1304）\n体育岗位:体育学类（0402）\n信息技术岗位:计算机类（0809）\n心理辅导岗位:心理学类（0711）"]
["临夏市","临夏市实验小学分校","乡镇小学",50,15,15,8,{"$nulls":6},3,4,3,1,1]
["临夏市","临夏市城郊镇永红小学","乡镇小学",1,1]
["临夏市","临夏市城郊镇肖家小学","乡镇小学",1,null,1]
["临夏市","临夏市折桥镇九眼泉小学","乡镇小学",1,1]
["临夏市","临夏市折桥镇折桥小学","乡镇小学",1,1]
["临夏市","临夏市折桥镇苟家小学","乡镇小学",1,null,1]
["临夏市","临夏市南龙镇杨妥家小学","乡镇小学",2,1,{"$nulls":8},1]
["临夏市","临夏市南龙镇马家庄小学","乡镇小学",3,2,1]
["临夏市","临夏市南龙镇四家嘴小学","乡镇小学",3,1,1,{"$nulls":8},1]
["临夏市","临夏市南龙镇南川小学","乡镇小学",2,null,1,{"$nulls":9},1]
["临夏市","临夏市南龙镇新农小学","乡镇小学",1,1]
["临夏市","临夏市南龙镇单子庄小学","乡镇小学",1,null,1]
["临夏市","临夏市枹罕镇牟家小学","乡镇小学",2,null,1,{"$nulls":7},1]
["临夏市","临夏市枹罕镇后杨小学","乡镇小学",2,1,{"$nulls":9},1]
["临夏市","临夏市枹罕镇罗家堡小学","乡镇小学",3,1,1,{"$nulls":7},1]
["临夏市","临夏市枹罕镇江牌小学","乡镇小学",2,1,1]
["临夏市","临夏市枹罕镇街子小学","乡镇小学",2,1,1]
["临夏市","临夏市枹罕镇拜家小学","乡镇小学",4,1,1,{"$nulls":7},1,1]
["临夏市","临夏市枹罕镇马彦庄小学","乡镇小学",3,1,1,{"$nulls":8},1]
["临夏市","临夏市枹罕镇铜匠庄小学","乡镇小学",3,1,1,{"$nulls":9},1]
["临夏县","临夏县漫路初级中学","初级中学",7,2,null,2,1,null,null,1,1,{"$nulls":10},"本科及以上学历，须取得相应学位","不限专业"]
["临夏县","临夏县漓水初级中学","初级中学",4,null,1,null,3]
["临夏县","临夏县马集初级中学","初级中学",10,3,3,3,1]
["临夏县","甘肃省临夏县振华中学","初级中学",2,null,null,1,{"$nulls":3},1]
["临夏县","临夏县漫路乡红泥泉小学","村级小学",1,null,1,{"$nulls":16},"大专及以上学历，其中本科及以上学历须取得相应学位。","大专：教育部《职业教育专业目录（2021年）》中“57教育与体育大类”下“5701教育类”中所有专业\n\n本科及以上：不限专业"]
["临夏县","临夏县漫路乡龙虎湾小学","村级小学",1,null,1]
["临夏县","临夏县漫路乡蔴莲小学","村级小学",1,{"$nulls":15},1]
["临夏县","临夏县漫路乡小岭小学","村级小学",1,null,null,1]
["临夏县","临夏县漫路乡张家湾小学","村级小学",1,{"$nulls":15},1]
["临夏县","临夏县漫路乡周家岭小学","村级小学",1,null,1]
["临夏县","临夏县民主乡尹家湾小学","村级小学",1,null,null,1]
["临夏县","临夏县民主乡邓家小学","村级小学",1,null,1]
["临夏县","临夏县民主乡民丰小学","村级小学",1,{"$nulls":9},1]
["临夏县","临夏县韩集镇姚川小学","乡镇小学",1,{"$nulls":11},1]
["临夏县","临夏县韩集镇沙塄沟小学","村级小学",1,{"$nulls":15},1]
["临夏县","临夏县韩集镇上阴洼小学","村级小学",1,null,null,1]
["临夏县","临夏县韩集镇下阴洼小学","村级小学",1,1]
["临夏县","临夏县井沟东乡族乡白杨树小学","村级小学",1,null,null,1]
["临夏县","临夏县井沟东乡族乡马家大庄小学","村级小学",2,1,1]
["临夏县","临夏县井沟东乡族乡何王小学","村级小学",2,1,null,1]
["临夏县","临夏县路盘乡牟家小学","教学点",1,null,null,1]
["临夏县","临夏县路盘乡永红小学","教学点",1,null,1]
["临夏县","临夏县麻尼寺沟乡大坪小学","教学点",1,1]
["临夏县","临夏县麻尼寺沟乡郭东山小学","村级小学",1,1]
["临夏县","临夏县麻尼寺沟乡关滩小学","村级小学",1,null,1]
["临夏县","临夏县麻尼寺沟乡马角岭小学","村级小学",1,{"$nulls":15},1]
["临夏县","临夏县麻尼寺沟乡唐尕中心小学","村级小学",1,{"$nulls":15},1]
["临夏县","临夏县漠泥沟乡漠泥沟中心小学","村级小学",1,null,1]
["临夏县","临夏县漠泥沟乡何家小学","村级小学",1,null,null,1]
["临夏县","临夏县漠泥沟乡阳洼小学","村级小学",1,1]
["临夏县","临夏县漠泥沟乡姬家小学","村级小学",1,null,1]
["临夏县","临夏县漠泥沟乡台塔小学","村级小学",1,null,1]
["临夏县","临夏县新集镇寺湾小学","村级小学",1,null,1]
["临夏县","临夏县新集镇杨坪小学","村级小学",1,{"$nulls":9},1]
["临夏县","临夏县新集镇苏山小学","村级小学",1,null,null,1]
["临夏县","临夏县新集镇赵牌小学","村级小学",1,{"$nulls":9},1]
["临夏县","临夏县新集镇梁山小学","教学点",1,{"$nulls":15},1]
["临夏县","临夏县刁祁镇多支巴教学点","教学点",1,1]
["临夏县","临夏县刁祁镇多麻小学","村级小学",1,{"$nulls":15},1]
["临夏县","临夏县刁祁镇围场小学","村级小学",1,1]
["临夏县","临夏县刁祁镇杨庄小学","村级小学",2,1,null,1]
["临夏县","临夏县刁祁镇兰癿小学","村级小学",{"$f":"SUM(E69:V69)","v":2},1,null,1]
["临夏县","临夏县马集镇柴东岭小学","村级小学",3,null,1,{"$nulls":6},1,{"$nulls":6},1]
["临夏县","临夏县马集镇长坡沿小学","村级小学",1,null,1]
["临夏县","临夏县马集镇庙山小学","村级小学",2,null,null,1,{"$nulls":12},1]
["临夏县","临夏县马集镇寨子小学","村级小学",2,null,null,1,{"$nulls":12},1]
["康乐县","康乐县康丰民族初级中学","初级中学",2,null,1,{"$nulls":4},1,{"$nulls":11},"本科及以上学历，须取得相应学位","不限专业"]
["康乐县","康乐县虎关初级中学","初级中学",1,null,null,1]
["康乐县","康乐县流川中学","初级中学",2,1,1]
["康乐县","康乐县白王初级中学","初级中学",2,null,null,1,null,1]
["康乐县","康乐县八松初级中学","初级中学",2,1,{"$nulls":6},1]
["康乐县","康乐县苏集初级中学","初级中学",1,{"$nulls":11},1]
["康乐县","康乐县鸣鹿初级中学","初级中学",2,1,null,1]
["康乐县","康乐县上湾民族中学","初级中学",2,{"$nulls":7},1,{"$nulls":3},1]
["康乐县","康乐县胭脂初级中学","初级中学",2,null,1,null,1]
["康乐县","康乐县草滩民族初中","初级中学",2,null,null,1,{"$nulls":3},1]
["康乐县","康乐县五户学校","九年一贯制（初中部）",1,null,null,1]
["康乐县"," 康乐县景古初级中学","初级中学",5,null,1,2,1,null,1]
["康乐县","康乐县莲麓初级中学","初级中学",6,1,1,1,1,1,1]
["康乐县","康乐县马家咀小学","村级小学",1,null,null,1,{"$nulls":15},"大专及以上学历，其中本科及以上学历须取得相应学位。","大专：教育部《职业教育专业目录（2021年）》中“57教育与体育大类”下“5701教育类”中所有专业\n\n本科及以上：不限专业"]
["康乐县","康乐县高林湾小学","村级小学",1,{"$nulls":8},1]
["康乐县","康乐县小沟小学","村级小学",1,1]
["康乐县","康乐县田家沟小学","村级小学",1,{"$nulls":15},1]
["康乐县","康乐县头岔小学","村级小学",1,null,1]
["康乐县","康乐县贾家沟小学","村级小学",1,null,null,1]
["康乐县","康乐县三十铺小学","村级小学",1,{"$nulls":9},1]
["康乐县","康乐县哇吓小学","村级小学",1,null,null,1]
["康乐县","康乐县上沟小学","村级小学",1,null,1]
["康乐县","康乐县当川铺小学","乡镇小学",1,{"$nulls":9},1]
["康乐县","康乐县古城小学","村级小学",1,{"$nulls":15},1]
["康乐县","康乐县团结小学","村级小学",1,{"$nulls":10},1]
["康乐县","康乐县范家小学","村级小学",1,{"$nulls":16},1]
["康乐县","康乐县甘沟小学","村级小学",1,1]
["康乐县","康乐县菜子沟小学","村级小学",1,null,1]
["康乐县","康乐县二甲小学","教学点",1,null,1]
["康乐县","康乐县白王小学","乡镇小学",1,null,1]
["康乐县","康乐县老树沟小学","村级小学",1,{"$nulls":8},1]
["康乐县","康乐县孙家掌小学","村级小学",1,1]
["康乐县","康乐县新庄小学","村级小学",1,null,null,1]
["康乐县","康乐县熊家寨小学","村级小学",1,1]
["康乐县","康乐县苏丰小学","村级小学",1,null,1]
["康乐县","康乐县冯马家小学","村级小学",1,null,null,1]
["康乐县","康乐县山庄小学","村级小学",1,null,1]
["康乐县","康乐县陡坡教学点","教学点",1,null,1]
["康乐县","康乐县树风学校","乡镇小学",1,{"$nulls":15},1]
["康乐县","康乐县塔庄小学","村级小学",1,null,null,1]
["康乐县","康乐县龚庄小学","村级小学",1,null,null,1]
["康乐县","康乐县那尼头小学","教学点",1,1]
["康乐县","康乐县纳沟小学","村级小学",1,1]
["康乐县","康乐县南山小学","教学点",1,null,1]
["康乐县","康乐县烈洼小学","教学点",1,1]
["康乐县","康乐县岔路小学","教学点",1,null,1]
["康乐县","康乐县丰台小学","村级小学",1,null,null,1]
["康乐县","康乐县徐家滩小学","村级小学",1,{"$nulls":12},1]
["康乐县","康乐县半坡小学","村级小学",1,null,null,1]
["康乐县","康乐县姚家湾小学","村级小学",1,{"$nulls":16},1]
["康乐县","康乐县古洞沟小学","村级小学",1,1]
["康乐县","康乐县周家沟小学","村级小学",1,1]
["康乐县","康乐县关扎教学点","教学点",1,null,1]
["康乐县","康乐县洼滩小学","乡镇小学",1,{"$nulls":15},1]
["康乐县","康乐县尕路小学","村级小学",1,{"$nulls":10},1]
["康乐县","康乐县大东沟小学","村级小学",1,null,1]
["康乐县","康乐县八才沟小学","村级小学",1,null,1]
["康乐县","康乐县东沟门小学","村级小学",1,1]
["康乐县","康乐县拔字沟小学","村级小学",1,null,1]
["康乐县","康乐县景古滩教学点","教学点",{"$f":"SUM(E133:V133)","v":1},null,1]
["康乐县","康乐县叶素小学","教学点",1,1]
["康乐县","康乐县芦子沟小学","村级小学",1,null,1]
["康乐县","康乐县李子堡小学","教学点",1,null,1]
["康乐县","康乐县麻湾小学","村级小学",1,null,null,1]
["康乐县","康乐县斜路坡小学","教学点",1,1]
["康乐县","康乐县黄家庄教学点","教学点",1,1]
["康乐县","康乐县吊庄小学","教学点",1,null,1]
["康乐县","康乐县上湾小学","乡镇小学",1,1]
["康乐县","康乐县三条沟小学","村级小学",1,null,null,1]
["康乐县","康乐县沙塄小学","村级小学",1,null,1]
["康乐县","康乐县后沟教学点","教学点",1,1]
["康乐县","康乐县九子沟教学点","教学点",1,1]
["康乐县","康乐县麻池小学","村级小学",1,null,1]
["康乐县","康乐县乔家小学","村级小学",1,1]
["康乐县","康乐县东沟小学","村级小学",1,null,null,1]
["康乐县","康乐县瓜梁小学","村级小学",1,{"$nulls":15},1]
["康乐县","康乐县兰家小学","村级小学",1,1]
["康乐县","康乐县沙塄小学","村级小学",1,null,1]
["康乐县","康乐县上寨小学","村级小学",1,null,null,1]
["康乐县","康乐县加木沟小学","村级小学",1,1]
["康乐县","康乐县老庄小学","村级小学",1,null,1]
["康乐县","康乐县大庄小学","村级小学",1,null,1]
["康乐县","康乐县庄头小学","村级小学",1,null,null,1]
["康乐县","康乐县甘沟湾小学","村级小学",3,1,null,1,{"$nulls":9},1]
["康乐县","康乐县八龙小学","村级小学",1,null,1]
["康乐县","康乐县晏家小学","村级小学",1,1]
["康乐县","康乐县开那小学","村级小学",1,1]
["康乐县","康乐县西坡小学","村级小学",1,null,1]
["康乐县","康乐县塄干小学","村级小学",1,1]
["康乐县","康乐县郭家麻小学","村级小学",1,null,1]
["康乐县","康乐县唐哈小学","村级小学",1,null,null,1]
["康乐县","康乐县蒲家小学","村级小学",1,1]
["康乐县","康乐县那那亥小学","村级小学",1,null,1]
["康乐县","康乐县巨那小学","村级小学",1,1]
["康乐县","康乐县新集小学","村级小学",1,null,1]
["康乐县","康乐县普巴小学","村级小学",1,null,1]
["康乐县","康乐县牟家窑小学","村级小学",1,1]
["康乐县","康乐县达洼河小学","村级小学",1,1]
["康乐县","康乐县苏河小学","村级小学",1,null,1]
["康乐县","康乐县那那沟小学","村级小学",1,1]
["康乐县","康乐县车长沟教学点","教学点",1,1]
["康乐县","康乐县东湾教学点","教学点",1,1]
["康乐县","康乐县槐沟教学点","教学点",1,null,1]
["康乐县","康乐县打门小学","村级小学",1,null,1]
["康乐县","康乐县蔡家小学","村级小学",1,null,1]
["康乐县","康乐县丁滩小学","村级小学",1,1]
["康乐县","康乐县景古小学","乡镇小学",1,{"$nulls":11},1]
["康乐县","康乐县向阳咀小学","教学点",1,1]
["康乐县","康乐县温家河小学","教学点",1,null,1]
["康乐县","康乐县线家滩小学","村级小学",1,1]
["康乐县","康乐县秦家河小学","教学点",1,null,1]
["康乐县","康乐县王家沟小学","村级小学",1,null,null,1]
["康乐县","康乐县牟家沟小学","村级小学",1,null,1]
["康乐县","康乐县阿姑山小学","教学点",1,1]
["康乐县","康乐县下扎小学","村级小学",1,null,1]
["康乐县","康乐县蛇路小学","村级小学",1,1]
["康乐县","康乐县线家湾小学","教学点",1,1]
["康乐县","康乐县河口小学","村级小学",1,1]
["康乐县","康乐县地寺坪小学","村级小学",1,null,1]
["康乐县","康乐县寺址小学","村级小学",1,1]
["康乐县","康乐县足古川教学点","教学点",1,1]
["广河县","广河县三甲集中学","完全中学（初中部）",{"$f":"E195+F195+G195+H195+I195+J195+K195+L195+M195+N195+O195+P195+Q195+R195+S195+T195+U195+V195","v":26},5,4,5,2,1,1,1,3,1,1,null,1,1,{"$nulls":5},"本科及以上学历，须取得相应学位","不限专业"]
["广河县","广河县回民第二中学","初级中学",17,3,3,4,1,1,1,1,null,1,null,null,1,1]
["广河县","广河县回民第三中学","初级中学",9,1,2,1,{"$nulls":3},1,1,1,null,null,1,1]
["广河县","广河县回民第四中学","初级中学",13,3,2,2,1,1,1,1,1,1]
["广河县","广河县回民第五中学","初级中学",9,3,3,3]
["广河县","广河县回民第六中学","初级中学",10,2,1,2,null,null,1,1,1,2]
["广河县","广河县回民第七中学","初级中学",9,1,3,3,1,null,1]
["广河县","广河县三甲集小学","乡镇小学",11,2,2,2,{"$nulls":5},1,1,1,1,null,1,{"$nulls":4},"大专及以上学历，其中本科及以上学历须取得相应学位。","大专：教育部《职业教育专业目录（2021年）》中“57教育与体育大类”下“5701教育类”中所有专业\n\n本科及以上：不限专业"]
["广河县","广河县宁定小学","村级小学",6,1,1,1,{"$nulls":5},1,null,1,{"$nulls":5},1]
["广河县","广河县兰家村教学点","教学点",1,null,null,1]
["广河县","广河县贾家希望小学","村级小学",1,{"$nulls":10},1]
["广河县","广河县巴家小学","村级小学",1,1]
["广河县","广河县兰家小学","村级小学",1,{"$nulls":10},1]
["广河县","广河县尤家小学","村级小学",2,1,{"$nulls":10},1]
["广河县","广河县阿力麻土大庄小学","村级小学",2,{"$nulls":8},1,{"$nulls":6},1]
["广河县","广河县山庄教学点","教学点",2,1,1]
["广河县","广河县寺沟教学点","教学点",1,null,null,1]
["广河县","广河县金家沟教学点","教学点",1,{"$nulls":15},1]
["广河县","广河县阿力麻土小学","乡镇小学",1,{"$nulls":13},1]
["广河县","广河县何家铺小学","村级小学",1,{"$nulls":13},1]
["广河县","广河县火红小学","村级小学",1,{"$nulls":10},1]
["广河县","广河县李家河小学","村级小学",1,null,1]
["广河县","广河县李家坪小学","村级小学",1,null,null,1]
["广河县","广河县马力庄小学","村级小学",2,1,{"$nulls":7},1]
["广河县","广河县十里墩小学","村级小学",1,null,1]
["广河县","广河县牟家窑小学","村级小学",2,1,{"$nulls":14},1]
["广河县","广河县槐沟村教学点","教学点",1,1]
["广河县","广河县官坊小学","乡镇小学",1,{"$nulls":12},1]
["广河县","广河县河滩小学","村级小学",2,1,{"$nulls":9},1]
["广河县","广河县山庄小学","教学点",2,1,{"$nulls":14},1]
["广河县","广河县河滩村学","教学点",1,1]
["广河县","广河县槐沟小学","村级小学",1,null,1]
["广河县","广河县阳洼庄小学","村级小学",1,null,1]
["广河县","广河县沙地沟小学","村级小学",2,1,null,1]
["广河县","广河县董家山教学点","教学点",2,null,1,{"$nulls":6},1]
["广河县","广河县买家巷小学","乡镇小学",1,{"$nulls":9},1]
["广河县","广河县马家咀小学","村级小学",1,null,null,1]
["广河县","广河县李家寺小学","村级小学",1,1]
["广河县","广河县曾家小学","村级小学",1,{"$nulls":12},1]
["广河县","广河县上王家小学","村级小学",2,1,1]
["广河县","广河县武家坪小学","教学点",1,1]
["广河县","广河县张家山教学点","教学点",1,null,1]
["广河县","广河县蔡家窑小学","教学点",2,1,1]
["广河县","广河县曹家坡村学","教学点",1,1]
["广河县","广河县张家山小学","教学点",2,1,{"$nulls":7},1]
["广河县","广河县曹家坡小学","村级小学",2,null,1,{"$nulls":13},1]
["广河县","广河县董家河小学","村级小学",2,1,null,1]
["广河县","广河县王家小学","村级小学",1,{"$nulls":10},1]
["广河县","广河县黄家坪教学点","教学点",2,1,null,1]
["广河县","广河县上马家小学","村级小学",2,null,1,{"$nulls":8},1]
["广河县","广河县申家滩村学","教学点",2,1,1]
["广河县","广河县排子坪小学","乡镇小学",2,null,1,{"$nulls":10},1]
["广河县","广河县黄家湾小学","村级小学",2,1,null,1]
["广河县","广河县新民滩小学","村级小学",2,null,1,{"$nulls":6},1]
["广河县","广河县邓家湾小学","村级小学",2,1,{"$nulls":9},1]
["广河县","广河县马家湾小学","村级小学",2,1,1]
["广河县","广河县张家咀小学","村级小学",3,1,1,1]
["广河县","广河县周家山小学","村级小学",3,1,1,1]
["广河县","广河县红庄小学","村级小学",3,1,1,{"$nulls":13},1]
["广河县","广河县黄家小学","教学点",3,1,1,1]
["广河县","广河县魏家咀小学","村级小学",1,1]
["广河县","广河县何家湾村学","教学点",1,1]
["广河县","广河县何家湾教学点","教学点",2,1,1]
["广河县","广河县四甲小学","村级小学",3,1,1,1]
["广河县","广河县祁家集小学","乡镇小学",{"$f":"E259+F259+G259+H259+I259+J259+K259+L259+M259+N259+O259+P259+Q259+R259+S259+T259+U259+V259","v":1},{"$nulls":10},1]
["广河县","广河县田家小学","村级小学",2,1,1]
["广河县","广河县黄家沟小学","村级小学",2,1,{"$nulls":14},1]
["广河县","广河县黄赵家小学","村级小学",2,null,1,{"$nulls":9},1]
["广河县","广河县陈家湾小学","村级小学",1,1]
["广河县","广河县高康家小学","村级小学",2,1,{"$nulls":7},1]
["广河县","广河县朱家坪小学","村级小学",2,null,1,{"$nulls":6},1]
["广河县","广河县徐牟家小学","村级小学",2,null,1,{"$nulls":7},1]
["广河县","广河县蔡王家小学","村级小学",1,1]
["广河县","广河县谢家小学","村级小学",3,null,1,1,{"$nulls":9},1]
["广河县","广河县寺后子小学","村级小学",1,1]
["广河县","广河县何家湾小学","教学点",1,1]
["广河县","广河县李家湾小学","教学点",1,null,1]
["广河县","广河县果园山小学","教学点",1,1]
["广河县","广河县水家小学","村级小学",5,2,1,1,{"$nulls":9},1]
["广河县","广河县宗家小学","村级小学",3,1,1,1]
["广河县","广河县头家小学","村级小学",2,1,1]
["广河县","广河县陈家小学","村级小学",6,2,1,1,{"$nulls":5},1,1]
["广河县","广河县卧托村学","教学点",2,1,1]
["广河县","广河县小洼沟小学","教学点",1,1]
["广河县","广河县甘坪小学","村级小学",3,1,1,{"$nulls":6},1]
["广河县","广河县上集小学","乡镇小学",9,1,1,1,{"$nulls":5},1,1,1,1,null,1,null,null,1]
["广河县","广河县白庄头小学","村级小学",2,1,1]
["广河县","广河县五户小学","村级小学",3,1,1,{"$nulls":6},1]
["广河县","广河县康家小学","村级小学",9,2,2,1,{"$nulls":5},1,null,1,1,1]
["广河县","广河县草滩村教学点","教学点",1,null,null,1]
["广河县","广河县水泉乡克那教学点","教学点",2,1,1]
["广河县","广河县克那小学","村级小学",3,1,1,{"$nulls":13},1]
["广河县","广河县老庄小学","村级小学",1,1]
["广河县","广河县水泉小学","乡镇小学",2,1,{"$nulls":8},1]
["广河县","广河县马家小学","教学点",2,1,1]
["广河县","广河县康坪小学","教学点",1,1]
["广河县","广河县排套小学","村级小学",3,1,1,{"$nulls":6},1]
["广河县","广河县闫子小学","村级小学",2,1,1]
["广河县","广河县牛康家小学","村级小学",3,1,1,{"$nulls":8},1]
["广河县","广河县新庄小学","村级小学",3,null,1,1,{"$nulls":5},1]
["广河县","广河县张家小学","教学点",3,1,1,1]
["广河县","广河县草滩小学","村级小学",1,{"$nulls":11},1]
["广河县","广河县对康小学","村级小学",2,1,null,1]
["广河县","广河县庄禾集小学","乡镇小学",2,1,{"$nulls":9},1]
["广河县","广河县雅幽小学","村级小学",3,1,null,1,{"$nulls":8},1]
["广河县","广河县庄禾集镇大庄小学","村级小学",3,1,1,{"$nulls":6},1]
["广河县","广河县新民小学","村级小学",2,1,{"$nulls":10},1]
["广河县","广河县中寨小学","村级小学",3,1,1,{"$nulls":6},1]
["广河县","广河县马浪小学","村级小学",3,1,1,1]
["广河县","广河县司家坪小学","教学点",2,1,1]
["广河县","广河县牙和小学","村级小学",3,1,1,{"$nulls":13},1]
["广河县","广河县宋家山小学","村级小学",3,1,null,1,{"$nulls":12},1]
["广河县","广河县西坪小学","村级小学",2,1,1]
["和政县","和政县第一中学","初级中学",13,1,1,2,2,1,1,1,1,1,null,1,1,{"$nulls":6},"本科及以上学历，须取得相应学位","不限专业"]
["和政县","和政县第二中学","初级中学",7,1,1,1,1,null,1,1,1]
["和政县","和政县第五中学","初级中学",6,1,1,2,1,{"$nulls":3},1,{"$nulls":12},"1名英语、1\n名物理为已签约农硕"]
["和政县","和政县育才初级中学","初级中学",18,4,3,5,2,2,1,1]
["和政县","和政县龙泉初级中学","初级中学",20,2,2,4,2,2,2,1,1,2,{"$nulls":3},1,1,{"$nulls":6},"1名数学、1\n名英语为已签约农硕"]
["和政县","和政县梁家寺初级中学","九年一贯制（初中部）",10,1,1,2,2,1,1,1,1]
["和政县","和政县龙泉小学","乡镇小学",20,6,5,5,{"$nulls":5},1,1,1,1,{"$nulls":6},"大专及以上学历，其中本科及以上学历须取得相应学位。","大专：教育部《职业教育专业目录（2021年）》中“57教育与体育大类”下“5701教育类”中所有专业\n\n本科及以上：不限专业"]
["和政县","和政县西关小学","乡镇小学",20,6,6,5,{"$nulls":6},1,1,1]
["和政县","和政县香子小学","乡镇小学",5,2,2,1]
["和政县","和政县新集学校","乡镇小学",5,1,1,1,{"$nulls":5},1,1]
["和政县","和政县车巴小学","教学点",1,1]
["和政县","和政县科托小学","教学点",2,null,1,{"$nulls":6},1]
["和政县","和政县城关学区台子街学校","乡镇小学",2,null,null,1,{"$nulls":8},1]
["和政县","和政县城关学区麻藏小学","村级小学",1,{"$nulls":9},1]
["和政县","和政县达浪学区杨马族小学","村级小学",1,{"$nulls":8},1]
["和政县","和政县达浪学区仲马家小学","村级小学",2,null,1,{"$nulls":8},1]
["和政县","和政县达浪学区大庄小学","村级小学",2,1,{"$nulls":10},1]
["和政县","和政县新庄学校","乡镇小学",1,1]
["和政县","和政县新庄学区中良小学","村级小学",1,{"$nulls":12},1]
["和政县","和政县新庄学区金场沟小学","教学点",1,null,1]
["和政县","和政县新庄学区拉尕顶小学","教学点",1,null,null,1]
["和政县","和政县松鸣学区桦林小学","村级小学",1,1]
["和政县","和政县松鸣学区狼土泉小学","村级小学",1,null,1]
["和政县","和政县松鸣学区国英小学","村级小学",1,1]
["和政县","和政县卜家庄学区马场小学","村级小学",1,null,1]
["和政县","和政县卜家庄学区前坪小学","教学点",1,null,1]
["和政县","和政县卜家庄学区甘沟小学","村级小学",1,1]
["和政县","和政县卜家庄学区拉里洼小学","教学点",2,null,null,1,{"$nulls":7},1]
["和政县","和政县买家集镇中心小学","乡镇小学",1,1]
["和政县","和政县买家集学区民主小学","村级小学",1,null,1]
["和政县","和政县买家集学区石咀小学","村级小学",1,null,1]
["和政县","和政县买家集学区古录山小学","村级小学",1,{"$nulls":11},1]
["和政县","和政县陈家集学区陈家集学校","乡镇小学",2,1,1]
["和政县","和政县陈家集学区王录山小学","村级小学",1,{"$nulls":9},1]
["和政县","和政县陈家集学区孟家小学","村级小学",1,{"$nulls":12},1]
["和政县","和政县陈家集学区王泉小学","村级小学",1,1]
["和政县","和政县陈家集学区陈家沟小学","村级小学",1,null,1]
["和政县","和政县陈家集学区宋家沟小学","村级小学",1,null,null,1]
["和政县","和政县陈家集学区贾百户小学","村级小学",1,null,1]
["和政县","和政县陈家集学区上王家小学","村级小学",1,null,null,1]
["和政县","和政县梁家寺东乡族学校","乡镇小学",1,null,1]
["和政县","和政县梁家寺学区赵家沟小学","村级小学",2,1,null,1]
["和政县","和政县梁家寺学区杨仲家小学","村级小学",2,1,1]
["和政县","和政县梁家寺学区大马家小学","村级小学",1,1]
["和政县","和政县梁家寺学区友好小学","村级小学",2,null,1,{"$nulls":10},1]
["和政县","和政县梁家寺学区甘沟小学","村级小学",1,1]
["和政县","和政县梁家寺学区福和希望小学","村级小学",1,null,null,1]
["和政县","和政县梁家寺学区南湾小学","教学点",2,1,1]
["和政县","和政县梁家寺学区杜家山小学","教学点",2,null,1,1]
["和政县","和政县马家堡中心小学","乡镇小学",2,null,1,1]
["和政县","和政县马家堡学区脖项小学","村级小学",2,1,{"$nulls":15},1]
["和政县","和政县马家堡学区中庄小学","村级小学",1,1]
["和政县","和政县马家堡学区杨台小学","村级小学",1,1]
["和政县","和政县马家堡学区大庄小学","村级小学",2,null,1,{"$nulls":9},1]
["和政县","和政县马家堡学区台子小学","村级小学",2,null,null,1,{"$nulls":6},1]
["和政县","和政县马家堡学区团咀小学","教学点",1,null,1]
["和政县","和政县马家堡学区张湾小学","教学点",1,1]
["和政县","和政县马家堡学区小河小学","村级小学",2,null,1,1]
["和政县","和政县罗家集学区罗家集学校","乡镇小学",3,1,1,1]
["和政县","和政县罗家集学区三岔沟小学","村级小学",2,1,{"$nulls":15},1]
["和政县","和政县罗家集学区裴家台小学","村级小学",2,null,null,1,{"$nulls":9},1]
["和政县","和政县罗家集学区联合小学","村级小学",1,1]
["和政县","和政县罗家集学区大坪小学","村级小学",2,1,1]
["和政县","和政县罗家集学区大滩小学","村级小学",2,null,1,{"$nulls":8},1]
["和政县","和政县罗家集学区李家山小学","村级小学",3,null,1,1,{"$nulls":5},1]
["和政县","和政县新营学区甘沟门学校","乡镇小学",4,1,1,1,{"$nulls":9},1]
["和政县","和政县新营学区大庄小学","村级小学",2,1,1]
["和政县","和政县新营学区金穗希望小学","教学点",2,1,null,1]
["和政县","和政县新营学区元菜坪小学","村级小学",3,1,1,1]
["和政县","和政县新营学区大沟小学","村级小学",3,1,1,{"$nulls":7},1]
["和政县","和政县新营学区寺营小学","村级小学",3,1,1,1]
["和政县","和政县新营学区山城小学","教学点",2,1,1]
["和政县","和政县三十里铺马牧沟学校","乡镇小学",2,1,null,1]
["和政县","和政县三十里铺学区马家河小学","村级小学",1,null,null,1]
["和政县","和政县三十里铺学区三十里铺小学","村级小学",1,null,1]
["和政县","和政县三十里铺学区大路小学","教学点",2,null,1,{"$nulls":7},1]
["和政县","和政县三十里铺学区闵家小学","村级小学",1,null,null,1]
["和政县","和政县三十里铺学区阴山小学","村级小学",1,1]
["和政县","和政县三十里铺学区希望小学","教学点",1,1]
["和政县","和政县三十里铺学区大坪小学","村级小学",1,null,1]
["和政县","和政县三十里铺学区包侯家小学","村级小学",1,1]
["和政县","和政县三十里铺学区陈家咀小学","教学点",1,1]
["和政县","和政县三十里铺学区洒麻浪小学","教学点",1,null,1]
["和政县","和政县三十里铺学区张家沟小学","村级小学",1,null,1]
["和政县","和政县三十里铺学区齐家沟小学","村级小学",1,{"$nulls":11},1]
["和政县","和政县三十里铺学区四十里铺小学","村级小学",1,null,1]
["和政县","和政县三合学区前山小学","教学点",1,null,1]
["和政县","和政县三合学区虎家小学","村级小学",1,null,null,1]
["和政县","和政县三合学区杨家小学","村级小学",1,1]
["积石山县","积石山县胡林家乡胡林家村集中安置点第五中学","初级中学",{"$f":"SUM(E397:V397)","v":43},4,5,4,3,3,4,4,4,4,2,2,2,1,1,{"$nulls":4},"本科及以上学历，须取得相应学位","不限专业","1名英语、1名地理、2名生物为已签约农硕"]
["积石山县","积石山县癿藏中学","初级中学",7,1,1,2,1,{"$nulls":3},1,null,null,1]
["积石山县","积石山县居集初级中学","初级中学",2,1,{"$nulls":7},1]
["积石山县","积石山县刘集中学","初级中学",1,null,null,1]
["积石山县","积石山县银川初级中学","初级中学",1,1]
["积石山县","积石山县大河家中学","初级中学",35,3,3,4,3,3,3,2,2,3,2,2,2,2,1]
["积石山县","积石山县城东小学","乡镇小学",6,2,2,1,{"$nulls":9},1,{"$nulls":5},"大专及以上学历，其中本科及以上学历须取得相应学位。","大专：教育部《职业教育专业目录（2021年）》中“57教育与体育大类”下“5701教育类”中所有专业\n\n本科及以上：不限专业"]
["积石山县","积石山县关家川学区芦家庄小学","村级小学",1,null,1]
["积石山县","积石山县关家川学区关集小学","村级小学",1,null,1]
["积石山县","积石山县胡林家学区山庄村教学点","教学点",1,1]
["积石山县","积石山县石塬学区沈家坪小学","村级小学",1,null,1]
["积石山县","积石山县大河家学区大墩小学","村级小学",1,null,null,1]
["积石山县","积石山县大河家学区梅坡小学","村级小学",1,null,null,1]
["积石山县","积石山县大河家学区陈家小学","村级小学",1,1]
["积石山县","积石山县大河家学区周家小学","村级小学",1,{"$nulls":15},1]
["积石山县","积石山县郭干学区王家小学","村级小学",1,null,1]
["积石山县","积石山县居集学区强滩小学","村级小学",1,null,null,1]
["积石山县","积石山县刘集学区大庄小学","村级小学",1,null,1]
["积石山县","积石山县铺川学区湫池小学","村级小学",2,null,1,{"$nulls":13},1]
["积石山县","积石山县铺川学区张巴小学","村级小学",1,{"$nulls":15},1]
["积石山县","积石山县小关学区小关小学","村级小学",1,{"$nulls":16},1]
["积石山县","积石山县小关学区大茨滩小学","村级小学",2,1,{"$nulls":14},1]
["积石山县","积石山县徐扈家学区牟家小学","乡镇小学",1,null,null,1]
["积石山县","积石山县徐扈家学区乔干小学","村级小学",1,null,null,1]
["积石山县","积石山县徐扈家学区尚家教学点","教学点",1,1]
["积石山县","积石山县银川学区刘王小学","村级小学",1,{"$nulls":15},1]
["积石山县","积石山县银川学区龙光小学","村级小学",1,null,1]
["积石山县","积石山县银川学区时杨小学","村级小学",{"$f":"SUM(E424:V424)","v":1},1]
["积石山县","积石山县银川学区工匠小学","村级小学",1,null,null,1]
["积石山县","积石山县银川学区水陈小学","村级小学",1,{"$nulls":15},1]
["积石山县","积石山县寨子沟学区寨子沟小学","村级小学",1,null,1]
["积石山县","积石山县中咀岭学区中咀岭小学","村级小学",1,{"$nulls":12},1]
["积石山县","积石山县中咀岭学区金场小学","村级小学",1,null,null,1]
["积石山县","积石山县中咀岭学区大山小学","村级小学",1,{"$nulls":15},1]
["积石山县","积石山县中咀岭学区庙岭小学","村级小学",1,{"$nulls":9},1]
["积石山县","积石山县中咀岭学区三合小学","村级小学",1,{"$nulls":15},1]
["积石山县","积石山县吹麻滩镇阳洼庄集中安置点城南小学","村级小学",34,7,7,7,{"$nulls":5},2,2,2,2,2,null,null,2,1]
["积石山县","积石山县大河家镇韩陕家村集中安置点益民小学","村级小学",8,2,2,2,{"$nulls":8},1,1]
["积石山县","积石山县大河家镇甘河滩村集中安置点富民小学","村级小学",6,1,1,1,{"$nulls":6},1,1,{"$nulls":4},1]
["积石山县","积石山县大河家镇康吊村集中安置点圆梦小学","村级小学",5,1,1,1,{"$nulls":6},1,null,1]
["积石山县","积石山县大河家镇康吊村关门社集中安置点利民小学","村级小学",3,1,null,1,{"$nulls":5},1]
["积石山县","积石山县大河家镇四堡子村集中安置点博爱小学","村级小学",6,1,1,1,{"$nulls":7},1,1,{"$nulls":4},1]
["积石山县","积石山县刘集乡团结村集中安置点爱民小学","村级小学",3,1,1,{"$nulls":13},1]
["积石山县","积石山县胡林家乡胡林家村集中安置点朝阳小学","村级小学",7,2,1,1,{"$nulls":6},1,1,1]
["东乡县","东乡县达板镇石化中学","初级中学",29,5,4,3,2,2,2,1,1,2,1,2,1,2,1,{"$nulls":4},"本科及以上学历，须取得相应学位","不限专业"]
["东乡县","东乡县第二中学","初级中学",5,null,1,1,1,{"$nulls":3},1,null,null,1]
["东乡县","东乡县第三中学","完全中学（初中部）",11,1,1,2,null,null,1,null,1,1,null,1,1,1,1]
["东乡县","东乡县第四中学","九年一贯制（初中部）",8,1,1,1,1,null,null,1,null,null,1,null,1,null,1]
["东乡县","东乡县第五中学","九年一贯制（初中部）",11,1,2,2,null,1,null,null,1,1,1,1,1]
["东乡县","东乡县第六中学","初级中学",4,1,{"$nulls":4},1,1,null,1]
["东乡县","东乡县果园中学","九年一贯制（初中部）",9,1,1,1,null,1,null,1,null,1,1,null,null,1,1]
["东乡县","东乡县考勒乡三塬学校","九年一贯制（初中部）",6,1,1,1,1,1,{"$nulls":4},1]
["东乡县","东乡县龙泉学校","九年一贯制（初中部）",5,1,1,null,1,1,{"$nulls":6},1]
["东乡县","东乡县达板镇鹭岛小学","乡镇小学",14,2,2,2,{"$nulls":5},1,1,1,1,1,1,null,1,1,null,"大专及以上学历，其中本科及以上学历须取得相应学位。","大专：教育部《职业教育专业目录（2021年）》中“57教育与体育大类”下“5701教育类”中所有专业\n\n本科及以上：不限专业"]
["东乡县","东乡族自治县第四中学","九年一贯制（小学部）",2,null,1,{"$nulls":6},1]
["东乡县","东乡县果园中学","九年一贯制（小学部）",2,{"$nulls":8},1,{"$nulls":3},1]
["东乡县","东乡县达板完全小学","乡镇小学",10,2,2,2,{"$nulls":5},1,1,{"$nulls":3},1,null,null,1]
["东乡县","东乡县达板甘崔小学","村级小学",4,null,1,1,{"$nulls":7},1,1]
["东乡县","东乡县达板黑石山小学","村级小学",1,1]
["东乡县","东乡县达板科妥小学","村级小学",7,1,1,1,{"$nulls":5},1,1,1,1]
["东乡县","东乡县春台乡石家沟小学","村级小学",1,null,1]
["东乡县","东乡县春台乡北庄小学","村级小学",1,1]
["东乡县","东乡县大树乡关卜小学","村级小学",{"$f":"SUM(E459:V459)","v":1},null,null,1]
["东乡县","东乡县大树乡黄家小学","村级小学",1,1]
["东乡县","东乡县大树乡南阳洼小学","村级小学",1,null,1]
["东乡县","东乡县大树乡乔鲁小学","村级小学",1,1]
["东乡县","东乡县大树乡团结小学","村级小学",1,null,1]
["东乡县","东乡县大树乡杨家小学","村级小学",1,null,1]
["东乡县","东乡县董岭乡董家岭小学","村级小学",1,null,null,1]
["东乡县","东乡县董岭乡张马家小学","村级小学",1,null,1]
["东乡县","东乡县凤山池滩小学","村级小学",1,null,null,1]
["东乡县","东乡县凤山乡冯家坪小学","村级小学",2,1,null,1]
["东乡县","东乡县凤山乡南岭学校","村级小学",2,1,{"$nulls":10},1]
["东乡县","东乡县高山乡布楞沟小学","村级小学",1,null,1]
["东乡县","东乡县高山乡岔巴小学","村级小学",1,1]
["东乡县","东乡县关卜乡菠萝小学","村级小学",1,null,null,1]
["东乡县","东乡县关卜乡和岘小学","村级小学",1,null,null,1]
["东乡县","东乡县关卜乡上王家小学","村级小学",1,null,null,1]
["东乡县","东乡县果园乡李坪小学","村级小学",2,null,1,{"$nulls":6},1]
["东乡县","东乡县果园乡洒勒学校","村级小学",2,null,1,1]
["东乡县","东乡县考勒乡三塬学校","九年一贯制（小学部）",5,1,null,1,{"$nulls":5},1,1,{"$nulls":5},1]
["东乡县","东乡县考勒乡八十个塬小学","村级小学",1,1]
["东乡县","东乡县考勒乡胡麻岭学校","村级小学",1,null,1]
["东乡县","东乡县考勒乡岘子小学","村级小学",1,null,null,1]
["东乡县","东乡县龙泉学校","九年一贯制（小学部）",5,1,1,1,{"$nulls":6},1,1]
["东乡县","东乡县龙泉乡马场小学","村级小学",1,null,null,1]
["东乡县","东乡县龙泉乡那楞沟小学","村级小学",1,1]
["东乡县","东乡县龙泉乡天桥小学","村级小学",1,1]
["东乡县","东乡县龙泉乡中岭小学","村级小学",1,1]
["东乡县","东乡县龙泉乡周牙教学点","教学点",1,null,null,1]
["东乡县","东乡县龙泉乡周杨小学","村级小学",1,1]
["东乡县","东乡县那勒寺小学","乡镇小学",7,1,1,{"$nulls":6},1,1,1,1,{"$nulls":3},1]
["东乡县","东乡县那勒寺达板空小学","村级小学",2,null,1,{"$nulls":9},1]
["东乡县","东乡县那勒寺东山小学","村级小学",1,1]
["东乡县","东乡县那勒寺郭泥沟小学","村级小学",2,null,1,1]
["东乡县","东乡县那勒寺和和土小学","村级小学",1,null,1]
["东乡县","东乡县那勒寺黑庄小学","村级小学",1,null,null,1]
["东乡县","东乡县那勒寺老庄小学","村级小学",1,1]
["东乡县","东乡县那勒寺李牙小学","村级小学",1,null,null,1]
["东乡县","东乡县那勒寺瓦房小学","村级小学",2,1,{"$nulls":8},1]
["东乡县","东乡县那勒寺阳洼小学","村级小学",3,1,1,1]
["东乡县","东乡县那勒寺祖祖小学","村级小学",1,null,null,1]
["东乡县","东乡县坪庄乡免古池小学","村级小学",1,1]
["东乡县","东乡县坪庄乡三社小学","村级小学",1,null,1]
["东乡县","东乡县唐汪镇三合学校","村级小学",1,null,null,1]
["东乡县","东乡县汪集学校","乡镇小学",5,1,null,1,{"$nulls":6},1,1,null,1]
["东乡县","东乡县汪集乡包家小学","村级小学",1,null,null,1]
["东乡县","东乡县五家乡卡家教学点","教学点",1,null,1]
["东乡县","东乡县五家乡马场小学","村级小学",1,null,1]
["东乡县","东乡县五家乡马阴小学","村级小学",2,null,1,1]
["东乡县","东乡县五家乡奴土坪小学","村级小学",1,1]
["东乡县","东乡县五家乡塔户小学","村级小学",1,null,1]
["东乡县","东乡县五家乡五家沟小学","村级小学",1,1]
["东乡县","东乡县五家乡尹家小学","村级小学",2,null,1,{"$nulls":9},1]
["东乡县","东乡县沿岭乡和平小学","村级小学",2,1,1]
["东乡县","东乡县沿岭乡三合沟小学","村级小学",1,null,1]
["东乡县","东乡县赵家乡石头沟小学","村级小学",1,null,null,1]
["东乡县","东乡县赵家乡撒拉沟小学","村级小学",1,null,null,1]
["东乡县","东乡县赵家乡甘土沟教学点","教学点",1,1]
["东乡县","东乡县锁南镇马场小学","村级小学",1,{"$nulls":9},1]